Cogmind - Beta 13 @@@ ROGUE MODE // 2024.06.02 @ 13:19:54 Player: TheRealTurtle Result: Destroyed by G-34 Mercenary with Small Laser Performance ------------- Evolutions (1) 500 Regions Visited (4) 800 Robots Destroyed (30) 150 Value Destroyed (793) 793 Prototype IDs (0) 0 Alien Tech Used (0) 0 Bonus (231) 231 TOTAL SCORE: 2474 Bonus ------- High Alert Combat Kills 31 Entered Garrisons 200 Cogmind --------- Core Integrity 0/400 Matter 141/300 Energy 100/100 System Corruption 4% Temperature Cool (6) Movement Core (350) Ox6 Location -9/Garrison Parts ------- > --- POWER (1) -------- (None) > --- PROPULSION (4) --- Light Treads > --- UTILITY (2) ------ Large Storage Unit > --- WEAPON (2) ------- (None) > --- INVENTORY (15) --- Light Ion Engine Improved Heat Sink Small Storage Unit Medium Storage Unit Huge Storage Unit Light Armor Plating Relay Coupler [Swarmer] (29) Relay Coupler [Cutter] (21) Peak State ------------ > --- POWER ------------ Ion Engine > --- PROPULSION ------- Wheel Armored Wheel Armored Wheel Armored Wheel > --- UTILITY ---------- Large Storage Unit Core Shielding > --- WEAPON ----------- Assault Rifle Mini Grenade Launcher > --- INVENTORY -------- Light Ion Engine Light Ion Engine Light Treads Aluminum Leg Aluminum Leg Small Storage Unit Medium Storage Unit Huge Storage Unit Light Armor Plating Small Laser [Rating: 14] Favorites ----------- Power Light Ion Engine Engine Light Ion Engine Propulsion Armored Wheel Treads Light Treads Leg Aluminum Leg Wheel Armored Wheel Utility Core Shielding Storage Large Storage Unit Protection Core Shielding Weapon Assault Rifle Energy Gun Small Laser Ballistic Gun Assault Rifle Launcher Mini Grenade Launcher Build | -11 -10 -9 -9 -9 ------- Run | Yrd Mat Mat Sto Gar Slots Evolved 2 | . . 2 . . Power . | . . . . . Propulsion 2 | . . 2 . . Utility . | . . . . . Weapon . | . . . . . Parts Attached 29 | 4 5 10 5 5 Power 4 | 1 . 1 1 1 Engine 4 | 1 . 1 1 1 Core . | . . . . . Reactor . | . . . . . Propulsion 11 | 2 . 5 1 3 Treads 1 | . . . . 1 Leg 4 | 2 . . . 2 Wheel 6 | . . 5 1 . Hover . | . . . . . Flight . | . . . . . Utility 7 | 1 2 4 . . Device . | . . . . . Storage 6 | 1 1 4 . . Processor . | . . . . . Hackware . | . . . . . Protection 1 | . 1 . . . Artifact . | . . . . . Weapon 7 | . 3 . 3 1 Energy Gun 2 | . 1 . . 1 Energy Cannon . | . . . . . Ballistic Gun 2 | . 1 . 1 . Ballistic Cannon . | . . . . . Launcher 3 | . 1 . 2 . Special Weapon . | . . . . . Impact Weapon . | . . . . . Slashing Weapon . | . . . . . Piercing Weapon . | . . . . . Special Melee Weapon . | . . . . . Unidentified Prototypes . | . . . . . Parts Lost 15 | . . . 3 12 Power 2 | . . . . 2 Propulsion 7 | . . . 1 6 Utility 1 | . . . . 1 Weapon 5 | . . . 2 3 Highest Loss Streak 4 | . . . 2 4 To Critical Strikes . | . . . . . Average Slot Usage (%) 88 | . 100 100 89 79 Engine 9 | . 14 11 11 7 Leg 8 | . 28 13 . 2 Wheel 25 | . . 30 39 31 Storage 11 | . 14 11 11 11 Protection 11 | . 14 11 11 10 Energy Gun 3 | . 10 . . 3 Ballistic Gun 7 | . 14 11 11 2 Launcher 7 | . 3 11 6 9 Naked Turns . | . . . . . Heaviest Build 29 | 8 19 29 29 29 Greatest Support 50 | 20 20 50 50 46 Greatest Overweight (x) 2 | . . . . 2 Average Overweight (x) . | . . . . . Largest Inventory Capacity 25 | 8 10 25 15 15 Average Capacity 12 | 6 9 11 15 15 Most Carried 12 | 8 10 12 12 12 Average Carried 9 | 4 8 9 10 9 Final Capacity 15 | 8 10 15 15 15 Final Carried 12 | 8 10 12 10 8 Class Distribution -------------------- 100% | Mutant Dominant Class ---------------- Mutant | -10/Materials Mutant | -9/Materials Mutant | -9/Storage Mutant | -9/Garrison Resources | -11 -10 -9 -9 -9 ----------- Run | Yrd Mat Mat Sto Gar Matter Collected 575 | 155 60 29 126 205 Remotely . | . . . . . Salvage Created 630 | . 87 78 126 339 Parts 44 | . 11 7 6 20 Haulers Intercepted . | . . . . . Recyclers Shooed . | . . . . . Parts Field Recycled . | . . . . . Retrieved Matter . | . . . . . Parts Self-Destructed . | . . . . . Prevented . | . . . . . Kills | -11 -10 -9 -9 -9 ------- Run | Yrd Mat Mat Sto Gar Combat Hostiles Destroyed 29 | . 5 5 6 13 Guns 12 | . 3 2 6 1 AOE 17 | . 2 3 . 12 Classes Destroyed 5 | . 2 2 . 1 Worker 1 | . . 1 . . Swarmer 11 | . 3 4 4 . Grunt 16 | . 2 . 2 12 Sentry 1 | . . 1 . . Programmer 1 | . . . . 1 Best Kill Streak 5 | . 3 5 4 5 Combat Bots Only 5 | . 3 4 4 5 Max Kills in Single Turn 2 | . 1 2 1 2 Gunslinging . | . . . . . Exploded 2 | . 1 2 . 2 Melee . | . . . . . Uniques/NPCs Destroyed . | . . . . . Combat | -11 -10 -9 -9 -9 -------- Run | Yrd Mat Mat Sto Gar Hostile Shots Fired 172 | . 10 23 44 95 Missed 44 | . 4 5 9 26 Damage Taken 1801 | . 120 190 383 1108 Core 410 | . 5 8 68 329 Absorbed by Shields . | . . . . . Redirected to Shielding 50 | . 1 1 12 36 Core Remaining (%) 99 | 100 98 . . . Volleys Fired 60 | . 5 6 33 16 Largest 2 | . 2 2 1 2 Hottest 70 | . 60 50 20 70 Shots Fired 78 | . 10 10 33 25 Gun 56 | . 8 6 33 9 Cannon . | . . . . . Launcher 22 | . 2 4 . 16 Special . | . . . . . Kinetic 46 | . 5 6 33 2 Thermal 10 | . 3 . . 7 Explosive 22 | . 2 4 . 16 Electromagnetic . | . . . . . Robot Hit Streak 6 | . 2 5 6 6 Robot Miss Streak 3 | . 3 3 3 2 Penetration Max . | . . . . . Secondary Targets . | . . . . . Shots Hit Robots 46 | . 4 6 20 16 Core Hits 44 | . 7 8 8 21 Critical Kills . | . . . . . Critical Parts Destroyed . | . . . . . Critical Strikes . | . . . . . Melee Attacks . | . . . . . Impact . | . . . . . Slashing . | . . . . . Piercing . | . . . . . Sneak Attacks . | . . . . . Combat Hostiles . | . . . . . Follow-up Attacks . | . . . . . Damage Inflicted 1742 | . 234 294 268 946 Guns 434 | . 59 48 268 59 Cannons . | . . . . . Explosions 1280 | . 175 246 . 859 Melee . | . . . . . Ramming 28 | . . . . 28 Kinetic 378 | . 37 48 268 25 Thermal 56 | . 22 . . 34 Explosive 1280 | . 175 246 . 859 Electromagnetic . | . . . . . Impact . | . . . . . Slashing . | . . . . . Piercing . | . . . . . Highest Corruption 4 | . . . 2 4 Average Corruption 2 | . . . 2 2 Corruption Purged . | . . . . . Corruption Blocked . | . . . . . Effects 11 | . . . 1 10 Message Errors 6 | . . . 1 5 Matter Fused 1 | . . . . 1 Energy Discharges 2 | . . . . 2 Data Loss (minor) 1 | . . . . 1 Data Loss (major) 1 | . . . . 1 Overload Shots . | . . . . . Overflow Damage 76 | . . 40 . 36 Projectiles . | . . . . . Explosions 76 | . . 40 . 36 Melee . | . . . . . Knockbacks . | . . . . . Impact . | . . . . . Kinetic . | . . . . . Secondary . | . . . . . Self-Inflicted Damage 382 | . 65 40 . 277 Shots 11 | . 1 1 . 9 Rammed 9 | . . . . 9 Targets Rammed 15 | . . . . 15 Kicked 6 | . . . . 6 Crushed . | . . . . . Highest Temperature 18 | . 6 . . 18 Average Temperature 7 | . 3 . . 8 Received Heat Transfer 492 | . 18 9 60 405 Siege Activations . | . . . . . Robots Corrupted . | . . . . . Combat Hostiles . | . . . . . Parts Fried . | . . . . . Impact Corruptions . | . . . . . Robots Melted . | . . . . . Combat Hostiles . | . . . . . Parts Melted . | . . . . . Heat Transferred 125 | . 50 . . 75 Parts Sabotaged . | . . . . . Parts Stolen . | . . . . . Parts Stripped . | . . . . . Power Chain Reactions . | . . . . . Alert | -11 -10 -9 -9 -9 ------- Run | Yrd Mat Mat Sto Gar Peak Influence 483 | . 186 239 274 483 Initial 178 | . . 78 100 178 Average 214 | . 69 173 148 335 Maximum Alert Level 2 | . . 1 1 2 Low Security (%) 52 | 100 100 51 79 18 Level 1 26 | . . 48 20 36 Level 2 20 | . . . . 44 Level 3 . | . . . . . Level 4 . | . . . . . Level 5 . | . . . . . High Security . | . . . . . Max Security . | . . . . . Squads Dispatched 2 | . . . 2 . Investigation 1 | . . . 1 . Extermination . | . . . . . Reinforcement 1 | . . . 1 . Assault . | . . . . . Garrison . | . . . . . Intercept . | . . . . . Searches Triggered . | . . . . . Construction Impeded . | . . . . . Haulers Reinforced . | . . . . . Active Scanning Responses . | . . . . . Cargo Convoy Interrupts . | . . . . . Stealth | -11 -10 -9 -9 -9 --------- Run | Yrd Mat Mat Sto Gar Distress Signals 1 | . . . 1 . Communications Jammed . | . . . . . Distress Signals . | . . . . . Times Spotted 40 | . 5 7 10 18 Peak Tracking Total 6 | . 3 4 6 6 Tactical Retreats . | . . . . . Traps | -11 -10 -9 -9 -9 ------- Run | Yrd Mat Mat Sto Gar Traps Triggered 4 | . . . 1 3 Indirectly . | . . . . . Trap Hack Attempts . | . . . . . Triggered . | . . . . . Disarmed . | . . . . . Reprogrammed . | . . . . . Reused . | . . . . . Traps Extracted . | . . . . . Installed . | . . . . . Triggered . | . . . . . Machines | -11 -10 -9 -9 -9 ---------- Run | Yrd Mat Mat Sto Gar Machines Disabled 2 | . 2 . . . Max in Single Turn 1 | . 1 . . . Machines Repaired . | . . . . . Machines Dismantled . | . . . . . Machines Sabotaged . | . . . . . Overloaded Fab Kills . | . . . . . Hacking | -11 -10 -9 -9 -9 --------- Run | Yrd Mat Mat Sto Gar Machines Accessed 7 | . . 1 3 3 Terminals 6 | . . 1 2 3 Fabricators . | . . . . . Repair Stations . | . . . . . Recycling Units . | . . . . . Scanalyzers . | . . . . . Garrison Access 1 | . . . 1 . Total Hacks 17 | . . 4 5 8 Successful 4 | . . 1 1 2 Failed 13 | . . 3 4 6 Catastrophic 3 | . . 1 2 . Database Lockouts . | . . . . . Manual 4 | . . 2 2 . Terminals 15 | . . 4 3 8 Fabricators . | . . . . . Repair Stations . | . . . . . Recycling Units . | . . . . . Scanalyzers . | . . . . . Garrison Access 2 | . . . 2 . Terminal Hacks 3 | . . 1 . 2 Open Door 1 | . . . . 1 Alert Level 1 | . . 1 . . Security Stations 1 | . . . . 1 Fabricator Hacks . | . . . . . Repair Station Hacks . | . . . . . Recycling Unit Hacks . | . . . . . Scanalyzer . | . . . . . Garrison Access Hacks 1 | . . . 1 . Unlock Access 1 | . . . 1 . Unauthorized Hacks . | . . . . . Terminals . | . . . . . Fabricators . | . . . . . Repair Stations . | . . . . . Recycling Units . | . . . . . Scanalyzers . | . . . . . Garrison Access . | . . . . . Data Cores Recovered . | . . . . . Used . | . . . . . Hacking Detections 5 | . . 1 2 2 Full Trace Events 1 | . . . 1 . Feedback Events . | . . . . . Feedback Blocked . | . . . . . Robot Schematics Acquired . | . . . . . Robots Built . | . . . . . Authchips . | . . . . . Time . | . . . . . Total Robot Build Rating . | . . . . . Part Schematics Acquired . | . . . . . Parts Built . | . . . . . Authchips . | . . . . . Time . | . . . . . Total Part Build Rating . | . . . . . Parts Repaired . | . . . . . Time . | . . . . . Parts Recycled . | . . . . . Recycled Matter . | . . . . . Retrieved Matter . | . . . . . Retrieved Components . | . . . . . Parts Scanalyzed . | . . . . . Part Schematics Acquired . | . . . . . Parts Damaged . | . . . . . Bothacking | -11 -10 -9 -9 -9 ------------ Run | Yrd Mat Mat Sto Gar Used RIF Installer . | . . . . . Robots Hacked . | . . . . . Non-combat . | . . . . . Combat . | . . . . . Robot Hacks Applied . | . . . . . Relay Couplers Released 3 | . . . . 3 Programmers 3 | . . . . 3 Fabnet Peak Effective % . | . . . . . Robots Rewired . | . . . . . Allies Hacked . | . . . . . Hacks Repelled . | . . . . . Allies | -11 -10 -9 -9 -9 -------- Run | Yrd Mat Mat Sto Gar Total Allies . | . . . . . Largest Group . | . . . . . Highest-Rated Group . | . . . . . Highest-Rated Ally . | . . . . . Total Orders . | . . . . . Ally Attacks . | . . . . . Total Damage . | . . . . . Kills . | . . . . . Allies Corrupted . | . . . . . Allies Melted . | . . . . . Intel | -11 -10 -9 -9 -9 ------- Run | Yrd Mat Mat Sto Gar Robot Analysis Total . | . . . . . Derelict Logs Recovered . | . . . . . Drone Launches . | . . . . . Drone Recoveries . | . . . . . Exploration | -11 -10 -9 -9 -9 ------------- Run | Yrd Mat Mat Sto Gar Turns Passed 1369 | 80 272 178 202 637 Spaces Moved 1092 | 60 181 124 139 588 Core 11 | 11 . . . . Treads . | . . . . . Legs 256 | 49 181 6 . 20 Wheels 825 | . . 118 139 568 Hover . | . . . . . Flight . | . . . . . Fastest Speed 50 | 50 120 90 86 86 Average Speed 96 | 107 120 91 86 92 Slowest Speed 260 | 120 120 120 90 260 Overloaded Moves . | . . . . . Propulsion Burnouts . | . . . . . Robots Hopped . | . . . . . Cave-ins Triggered . | . . . . . Exploration Rate (%) 28 | 4 28 12 33 64 Regions Visited 4 Branch Regions 1 Pre-discovered Areas . | . . . . . Known Exits Taken 1 | . . . 1 . Unknown Exits Taken 3 | 1 1 1 . . Scrap Searched . | . . . . . Spaces Dug . | . . . . . Terrain Destroyed 128 | . 48 25 . 55 Melee . | . . . . . Projectile . | . . . . . AOE 128 | . 48 25 . 55 Terrain Rammed . | . . . . . Walls Destroyed . | . . . . . Machines Disabled . | . . . . . Actions | -11 -10 -9 -9 -9 --------- Run | Yrd Mat Mat Sto Gar Total 1303 | 75 226 175 185 642 Wait 67 | . 25 28 8 6 Move 1085 | 59 180 123 138 585 Hop . | . . . . . Pick Up 30 | 12 8 6 1 3 Fast Attach . | . . . . . Attach 17 | 4 3 2 3 5 Detach . | . . . . . Swap 12 | . 2 8 2 . Drop 5 | . 3 2 . . Fire 60 | . 5 6 33 16 Melee . | . . . . . Ram 9 | . . . . 9 Kick 6 | . . . . 6 Crush . | . . . . . Escape Stasis 12 | . . . . 12 Rewire . | . . . . . Trap . | . . . . . Miscellaneous . | . . . . . Route ------- -11/Scrapyard -10/Materials -9/Materials -9/Storage -9/Garrison (discovered 2 exits: [*Rec x2]) History --------- Turn | Location | Event 8 | -11/Scrapyard | Discovered new exit (range 14) 81 | -11/Scrapyard | Entered Materials 316 | -10/Materials | Build established: Mutant 322 | -10/Materials | Discovered new exit (range 3) 353 | -10/Materials | Entered another Materials area 353 | -9/Materials | Evolved 2 slots: Propulsion x2 482 | -9/Materials | Discovered new exit (range 13) 531 | -9/Materials | Entered Storage 730 | -9/Storage | Identified exit to Garrison 733 | -9/Storage | Entered Garrison 847 | -9/Garrison | Triggered checkpoint 881 | -9/Garrison | Triggered checkpoint 917 | -9/Garrison | Discovered new exit (range 14) 930 | -9/Garrison | Attempted to access garrison exit controls, blocked by remote lockdown 1015 | -9/Garrison | Triggered checkpoint 1016 | -9/Garrison | Triggered checkpoint 1074 | -9/Garrison | Learned Recycling security intel 1077 | -9/Garrison | Triggered checkpoint 1166 | -9/Garrison | Discovered new exit (range 8) 1173 | -9/Garrison | Attempted to access garrison exit controls, blocked by remote lockdown 1183 | -9/Garrison | Triggered checkpoint 1275 | -9/Garrison | Triggered checkpoint 1288 | -9/Garrison | Core integrity fell below 50% 1332 | -9/Garrison | Lost 3 parts (2n1w) 1363 | -9/Garrison | Core integrity fell below 20% 1370 | -9/Garrison | Destroyed by G-34 Mercenary with Small Laser Last Messages --------------- Mni. Grenade Launcher destroyed. Destroyed Mni. Grenade Launcher. Slammed into G-34 Mercenary. Arm. Wheel destroyed. System corrupted by crushing effect (+1). Slammed into G-34 Mercenary. Arm. Wheel broken. Destabilizing: Short circuit. Broken Arm. Wheel destroyed. Slammed into G-34 Mercenary. Kicked G-34 Mercenary. Kicked G-34 Mercenary out of the way. Aluminum Leg destroyed. Core Shielding destroyed. Kicked G-47 Trooper. Aluminum Leg destroyed. G-34 Mercenary destroyed. Lgt. Ion Engine destroyed. Slammed into G-47 Trooper. Slammed into Y-45 Defender. Map ----- +----------------------------------------------------+ | ????????????????????????????????????????#= * | | ????????????????????????????????????????# | | ????????????????????????????????????????# | | ????????????????????????????????????????# | | ????????????????????????????????????????### | | ????????????????????????????############### | | ????????????????????????????# | | ????????????????????????????# | | ????????????????????????????# | | ????????????????????????????# #### ######### | | ????????????????????????????# #??# #???????? | | ????????????????????????????# #??# #???????? | | ????????????????????????????# #??# #???????? | | ????????????????????????????# #??# #???????? | | ?????????????????????######## #### #???????? | | ?????????????????????# #???????? | | ?????????????????????# ###### ######???????? | | ?????????????????????# ###??# #????????????? | | ?????????????????????# =#### #????????????? | | ????????????????????## [% #????????????? | | ????????????????????# *# ## #????????????? | | ????????????????????## ###?## #????????????? | | ????????????????????# #????# #????????????? | | ???????????????#######Y#????# #????????????? | | ???????????????#""""""Y#????# #????????????? | | ???????????????#" g@g#????# #????????????? | | ???????????????#" g =#????# #????????????? | | ???????????????#########????# #????????????? | | ????????????????????????????# #????????????? | | ????????????????????????????# #????????????? | | ????????????????????????????? #????????????? | | ????????????????????????????? ?????????????? | | ?????????????????????????????????????????????? | | ?????????????????????????????????????????????? | | ?????????????????????????????????????????????? | | ?????????????????????????????????????????????? | | ?????????????????????????????????????????????? | | ?????????????????????????????????????????????? | | ?????????????????????????????????????????????? | | ?????????????????????????????????????????????? | | ?????????????????????????????????????????????? | | ?????????????????????????????????????????????? | | ?????????????????????????????????????????????? | | ?????????????????????????????????????????????? | | ?????????????????????????????????????????????? | | ?????????????????????????????????????????????? | | ?????????????????????????????????????????????? | | ?????????????????????????????????????????????? | | ?????????????????????????????????????????????? | | ?????????????????????????????????????????????? | +----------------------------------------------------+ Best States ------------- Heat Dissipation 28 Energy Generation 10 Energy Capacity 250 Matter Stores 223 Matter Capacity 300 Sight Range 16 Terrain Scan Density 10 Core Shielding 20 Evasion (%) 55 Item Schematics ----------------- None Robot Schematics ------------------ None Fabricated ------------ Nothing Alien Tech Used ----------------- None Achievements -------------- None Challenges ------------ None Game ------ Seed CoordinationNullFalx Manual? 0 Play Time 00:20:16 Cumulative 12.4 hours Start 2024.06.02 @ 13:00:36 End 2024.06.02 @ 13:19:54 Sessions 1 Manual Loads 0 Difficulty Rogue Special Mode None Game No. 23 Rogue 23 Adventurer 0 Explorer 0 Win Type - Total 0 Types 0/0/0/0/0/0/0/0/0 Lore% 16 Gallery% 20 Achievement% 14 Wizard Run 0 Options --------- Layout 1 ASCII 0 Keyboard 0 Movement Mouse Keybinds 0 Fullscreen 1 Font 24/Smallcaps Map View 50x35 Zoom Use 0% Tactical HUD 0 Map Filters NONE Filters NONE Steam 1 RUN: f44a48f0-4f85-49a5-8fe8-5b6c47adc044